fUST/lending_fUST_20250920
["ID","MTS","AMOUNT","RATE_DAILY","PERIOD"]
[386540755,1758370558040,-480.0,0.00020787,2]
[386540756,1758370558132,-480.0,0.00020787,2]
[386540757,1758370558162,-1081.09,0.00020787,2]
[386540758,1758370558192,-480.0,0.00020787,2]
[386540759,1758370558222,-480.0,0.00020787,2]
[386540760,1758370558251,-480.0,0.00020787,2]
[386540761,1758370558280,-480.0,0.00020787,2]
[386540762,1758370558309,-915.53,0.00020787,2]
[386540763,1758370558338,-471.85696452,0.00020788,2]
[386540764,1758370558679,-98.12183092,0.00020786,2]
[386540765,1758370558694,-263.05607096,0.00020786,2]
[386540766,1758370561121,247.15,0.00019331,2]
[386540767,1758370561594,494.3,0.00020251,2]
[386540768,1758370567722,-118.82209812,0.00020786,2]
[386540769,1758370567752,-483.64224505,0.00020786,2]
[386540770,1758370567784,-812.95,0.00020786,2]
[386540771,1758370567813,-480.0,0.00020786,2]
[386540772,1758370567843,-300.0,0.00020787,2]
[386540773,1758370567874,-743.91,0.00020788,2]
[386540774,1758370567904,-480.0,0.00020788,2]
[386540775,1758370567932,-480.0,0.00020788,2]
[386540776,1758370567962,-480.0,0.00020788,2]
[386540777,1758370567991,-480.0,0.00020788,2]
[386540778,1758370568195,-281.36131366,0.00020788,2]
[386540779,1758370577471,-480.0,0.00020786,2]
[386540780,1758370577501,-480.889909,0.00020786,2]
[386540781,1758370577535,-480.0,0.00020787,2]
[386540782,1758370577567,-983.9,0.00020787,2]
[386540783,1758370577599,-198.63868634,0.00020788,2]
[386540784,1758370577795,-4753.15280932,0.00020788,2]
[386540785,1758370581934,1039.94363361,0.000199,2]
[386540786,1758370587449,-480.0,0.00020786,2]
[386540787,1758370587479,-2046.14,0.00020787,2]
[386540788,1758370587508,-480.0,0.00020787,2]
[386540789,1758370587539,-480.0,0.00020787,2]
[386540790,1758370587568,-708.4561379,0.00020787,2]
[386540791,1758370587665,-1610.8177242,0.00020787,2]
[386540792,1758370597471,-480.0,0.00020786,2]
[386540793,1758370597502,-480.0,0.00020786,2]
[386540794,1758370597531,-480.97028205,0.00020786,2]
[386540795,1758370597562,-480.0,0.00020787,2]
[386540796,1758370597598,-193.74224522,0.00020788,2]
[386540797,1758370597681,-5770.58494546,0.00020788,2]
[386540798,1758370607498,-480.0,0.00020786,2]
[386540799,1758370607529,-480.0,0.00020786,2]
[386540800,1758370607560,-480.0,0.00020786,2]
[386540801,1758370607590,-493.47429142,0.00020786,2]
[386540802,1758370607628,-269.04,0.00020788,2]
[386540803,1758370607659,-480.0,0.00020788,2]
[386540804,1758370607692,-1408.23,0.00020788,2]
[386540805,1758370607721,-480.0,0.00020788,2]
[386540806,1758370607751,-378.52141716,0.00020788,2]
[386540807,1758370607994,-101.47858284,0.00020788,2]
[386540808,1758370627667,-210.0,0.00020785,2]
[386540809,1758370627698,-403.71089448,0.00020786,2]
[386540810,1758370627729,-480.0,0.00020786,2]
[386540811,1758370627762,-480.0,0.00020786,2]
[386540812,1758370627794,-492.42338486,0.00020786,2]
[386540813,1758370627829,-307.30933101,0.00020786,2]
[386540814,1758370627860,-485.94097321,0.00020787,2]
[386540815,1758370627890,-483.58851083,0.00020787,2]
[386540816,1758370627922,-874.23,0.00020787,2]
[386540817,1758370627952,-480.0,0.00020787,2]
[386540818,1758370627983,-125.60381122,0.00020787,2]
[386540819,1758370628170,-354.39618878,0.00020787,2]
[386540820,1758370637521,-480.0,0.00020786,2]
[386540821,1758370637558,-941.65,0.00020786,2]
[386540822,1758370637595,-480.0,0.00020786,2]
[386540823,1758370637634,-480.0,0.00020787,2]
[386540824,1758370637668,-480.0,0.00020787,2]
[386540825,1758370637706,-480.0,0.00020787,2]
[386540826,1758370637741,-1168.0,0.00020787,2]
[386540827,1758370637777,-480.0,0.00020788,2]
[386540828,1758370637950,-20.71,0.00020787,2]
[386540829,1758370646003,257.54,0.00019328,2]
[386540830,1758370646609,515.08,0.00020248,2]
[386540831,1758370655900,204.39193663,0.00020686,2]
[386540833,1758370689729,-480.0,0.00020786,2]
[386540834,1758370689760,-505.8278232,0.00020786,2]
[386540835,1758370689790,-480.0,0.00020786,2]
[386540836,1758370689820,-480.0,0.00020786,2]
[386540837,1758370689850,-551.36,0.00020786,2]
[386540838,1758370689880,-480.0,0.00020786,2]
[386540839,1758370689911,-480.0,0.00020786,2]
[386540840,1758370689942,-323.07144135,0.00020786,2]
[386540841,1758370689972,-532.06780008,0.00020786,2]
[386540842,1758370690002,-459.29,0.00020787,2]
[386540843,1758370690212,-252.38393411,0.00020787,2]
[386540844,1758370709760,-480.0,0.00020786,2]
[386540845,1758370709790,-480.0,0.00020786,2]
[386540846,1758370709821,-480.0,0.00020786,2]
[386540847,1758370709853,-480.0,0.00020786,2]
[386540848,1758370709882,-480.0,0.00020786,2]
[386540849,1758370709913,-480.0,0.00020786,2]
[386540850,1758370709944,-227.61606589,0.00020787,2]
[386540851,1758370709976,-480.0,0.00020787,2]
[386540852,1758370710009,-784.91786822,0.00020787,2]
[386540853,1758370710160,-1254.94213178,0.00020787,2]
[386540854,1758370714801,304.49848534,0.000207,2]
[386540855,1758370716593,210.438843,0.00019873,2]
[386540856,1758370717706,-480.0,0.00020786,2]
[386540857,1758370717738,-1284.93,0.00020786,2]
[386540858,1758370717767,-480.0,0.00020787,2]
[386540859,1758370717799,-480.0,0.00020787,2]
[386540860,1758370717829,-480.0,0.00020787,2]
[386540861,1758370717859,-480.0,0.00020787,2]
[386540862,1758370717888,-480.0,0.00020787,2]
[386540863,1758370717916,-480.0,0.00020787,2]
[386540864,1758370717945,-230.15,0.00020787,2]
[386540865,1758370718896,10000.0,0.00019861,2]
[386540866,1758370727722,-524.80016451,0.00020786,2]
[386540867,1758370727752,-480.0,0.00020786,2]
[386540868,1758370727783,-480.0,0.00020786,2]
[386540869,1758370727815,-249.85,0.00020787,2]
[386540870,1758370727845,-480.0,0.00020787,2]
[386540871,1758370727877,-480.0,0.00020787,2]
[386540872,1758370727906,-483.67132997,0.00020787,2]
[386540873,1758370727936,-480.0,0.00020787,2]
[386540874,1758370727967,-496.28701104,0.00020787,2]
[386540875,1758370728371,-1639.81583359,0.00020787,2]
[386540876,1758370728418,247.71,0.0001935,2]
[386540877,1758370728707,495.42,0.00020271,2]
[386540878,1758370737722,-480.0,0.00020786,2]
[386540879,1758370737755,-50.97715537,0.00020787,2]
[386540880,1758370737785,-244.43,0.00020787,2]
[386540881,1758370737817,-536.22,0.00020787,2]
[386540882,1758370737848,-1110.08,0.00020787,2]
[386540883,1758370737878,-190.75601266,0.00020787,2]
[386540884,1758370737912,-133.95366394,0.00020788,2]
[386540885,1758370738024,-4507.17633606,0.00020788,2]
[386540887,1758370764431,1005.27884591,0.000199,2]
[386540892,1758370797582,8994.73115409,0.00019861,2]
[386540893,1758370797605,10000.01,0.00019861,2]
[386540894,1758370797740,10000.01,0.00019861,2]
[386540895,1758370797766,3051.31035251,0.00019861,2]
[386540896,1758370797958,-480.0,0.00020786,2]
[386540897,1758370797990,-912.42,0.00020786,2]
[386540898,1758370798019,-480.0,0.00020786,2]
[386540899,1758370798050,-480.0,0.00020786,2]
[386540900,1758370798081,-1036.04,0.00020786,2]
[386540901,1758370798110,-480.0,0.00020786,2]
[386540902,1758370798140,-480.0,0.00020786,2]
[386540903,1758370798169,-480.0,0.00020786,2]
[386540906,1758370810500,238.25,0.0001934,2]
[386540907,1758370810941,476.5,0.0002026,2]
[386540908,1758370827855,-1200.0,0.00020785,2]
[386540909,1758370827895,-480.0,0.00020786,2]
[386540910,1758370827935,-480.0,0.00020786,2]
[386540911,1758370827969,-480.0,0.00020786,2]
[386540912,1758370828009,-480.0,0.00020786,2]
[386540913,1758370828044,-480.0,0.00020786,2]
[386540914,1758370828081,-480.0,0.00020786,2]
[386540915,1758370828117,-480.0,0.00020786,2]
[386540916,1758370828151,-391.19460784,0.00020786,2]
[386540917,1758370828758,-97.62078432,0.00020786,2]
[386540918,1758370828932,-480.0,0.00020786,2]
[386540919,1758370828963,-480.0,0.00020786,2]
[386540920,1758370828994,-1960.88,0.00020786,2]
[386540921,1758370837855,-4447.75,0.00020786,2]
[386540922,1758370837884,-480.0,0.00020786,2]
[386540923,1758370837985,-480.0,0.00020786,2]
[386540924,1758370838112,-480.0,0.00020787,2]
[386540925,1758370838142,-480.0,0.00020787,2]
[386540926,1758370838173,-480.0,0.00020787,2]
[386540927,1758370838205,-480.0,0.00020787,2]
[386540928,1758370838235,-480.0,0.00020787,2]
[386540929,1758370838267,-942.9,0.00020787,2]
[386540930,1758370838296,-480.0,0.00020787,2]
[386540931,1758370838327,-480.0,0.00020787,2]
[386540932,1758370838415,-480.0,0.00020787,2]
[386540933,1758370838444,-480.0,0.00020787,2]
[386540934,1758370838474,-907.92,0.00020787,2]
[386540935,1758370838512,-1836.43,0.00020787,2]
[386540936,1758370838543,-480.0,0.00020787,2]
[386540937,1758370838573,-492.14862477,0.00020787,2]
[386540938,1758370838603,-167.01275046,0.00020787,2]
[386540939,1758370838749,-312.98724954,0.00020787,2]
[386540940,1758370838783,-480.0,0.00020787,2]
[386540941,1758370838816,-481.977123,0.00020787,2]
[386540942,1758370838845,-500.0,0.00020787,2]
[386540943,1758370838875,-623.85467772,0.00020787,2]
[386540944,1758370838907,-500.0,0.00020787,2]
[386540945,1758370838938,-401.61548066,0.00020787,2]
[386540946,1758370838968,-501.02722231,0.00020787,2]
[386540947,1758370838999,-500.0,0.00020787,2]
[386540948,1758370839034,-500.0,0.00020787,2]
[386540949,1758370839467,911.15568448,0.00020688,2]
[386540950,1758370847883,-208.13553573,0.00020786,2]
[386540951,1758370847914,-482.19207946,0.00020786,2]
[386540952,1758370847946,-485.03277472,0.00020786,2]
[386540953,1758370847976,-500.0,0.00020787,2]
[386540954,1758370848005,-500.0,0.00020787,2]
[386540955,1758370848037,-500.0,0.00020787,2]
[386540956,1758370848067,-500.0,0.00020787,2]
[386540957,1758370848096,-500.0,0.00020787,2]
[386540958,1758370848127,-500.0,0.00020787,2]
[386540959,1758370848161,-500.0,0.00020787,2]
[386540960,1758370848191,-149.28922018,0.00020787,2]
[386540961,1758370848352,-350.71077982,0.00020787,2]
[386540962,1758370848383,-500.0,0.00020787,2]
[386540963,1758370848415,-500.0,0.00020787,2]
[386540964,1758370848445,-500.0,0.00020787,2]
[386540965,1758370848475,-264.07314118,0.00020787,2]
[386540966,1758370848509,-500.0,0.00020787,2]
[386540967,1758370848541,-500.0,0.00020787,2]
[386540968,1758370848572,-276.0362158,0.00020787,2]
[386540969,1758370848605,-500.0,0.00020787,2]
[386540970,1758370848639,-500.0,0.00020787,2]
[386540971,1758370848670,-500.0,0.00020787,2]
[386540972,1758370848969,-500.0,0.00020787,2]
[386540973,1758370849004,-500.0,0.00020787,2]
[386540974,1758370849039,-500.0,0.00020787,2]
[386540975,1758370849072,-500.0,0.00020787,2]
[386540976,1758370849106,-500.0,0.00020787,2]
[386540977,1758370849136,-500.0,0.00020787,2]
[386540978,1758370849168,-250.91186062,0.00020787,2]
[386540979,1758370849202,-500.0,0.00020787,2]
[386540980,1758370849233,-321.40329953,0.00020787,2]
[386540981,1758370849262,-500.0,0.00020787,2]
[386540982,1758370849291,-152.56989661,0.00020787,2]
[386540983,1758370849325,-50.23988648,0.00020787,2]
[386540984,1758370860869,1181.2897537,0.00019854,2]
[386540985,1758370862783,-481.45039781,0.00020786,2]
[386540986,1758370862819,-569.48,0.00020786,2]
[386540987,1758370862852,-480.0,0.00020786,2]
[386540988,1758370862882,-480.0,0.00020786,2]
[386540989,1758370862914,-480.0,0.00020786,2]
[386540990,1758370862950,-449.76011352,0.00020787,2]
[386540991,1758370862980,-500.0,0.00020787,2]
[386540992,1758370863012,-500.0,0.00020787,2]
[386540993,1758370863046,-500.0,0.00020787,2]
[386540994,1758370863079,-500.0,0.00020787,2]
[386540996,1758370892449,229.15,0.00019412,2]
[386540997,1758370892902,458.31,0.00020336,2]
[386541002,1758370920485,387.664872,0.00019854,2]
[386541003,1758370946152,973.27884591,0.000199,2]
[386541004,1758370958091,-783.17,0.00020786,2]
[386541005,1758370958123,-2037.18,0.00020786,2]
[386541006,1758370958153,-480.0,0.00020786,2]
[386541007,1758370958184,-482.94939161,0.00020786,2]
[386541008,1758370958213,-480.0,0.00020786,2]
[386541009,1758370958242,-211.09088569,0.00020786,2]
[386541010,1758370958271,-480.0,0.00020786,2]
[386541011,1758370968116,-480.0,0.00020786,2]
[386541012,1758370968149,-534.12,0.00020786,2]
[386541013,1758370968179,-480.0,0.00020786,2]
[386541014,1758370968208,-480.0,0.00020786,2]
[386541015,1758370968238,-162.32684788,0.00020786,2]
[386541016,1758370968268,-480.0,0.00020786,2]
[386541017,1758370968298,-196.0081268,0.00020786,2]
[386541018,1758370968329,-183.6188774,0.00020786,2]
[386541019,1758370968361,-500.0,0.00020786,2]
[386541020,1758370968390,-500.0,0.00020786,2]
[386541021,1758370968423,-500.0,0.00020786,2]
[386541022,1758370968454,-500.0,0.00020786,2]
[386541023,1758370975532,-500.0,0.00020786,2]
[386541024,1758370975564,-500.0,0.00020786,2]
[386541025,1758370975596,-500.0,0.00020786,2]
[386541026,1758370975627,-313.4892555,0.00020786,2]
[386541027,1758370975659,-500.0,0.00020786,2]
[386541028,1758370975693,-208.18206918,0.00020786,2]
[386541029,1758370975727,-500.0,0.00020786,2]
[386541030,1758370975762,-500.0,0.00020786,2]
[386541031,1758370975795,-419.55957953,0.00020786,2]
[386541032,1758370975826,-500.0,0.00020786,2]
[386541033,1758370975859,-500.0,0.00020786,2]
[386541034,1758370976240,220.4,0.00019406,2]
[386541035,1758370976457,440.81,0.0002033,2]
[386541036,1758371016120,302.0,0.00027397,120]
[386541037,1758371057988,211.99,0.00019401,2]
[386541038,1758371058433,423.98,0.00020324,2]
[386541039,1758371070452,420.0,0.00027397,120]
[386541040,1758371127641,940.8362178,0.000199,2]
[386541041,1758371139451,302.0,0.00027397,120]
[386541042,1758371141563,203.89,0.00019382,2]
[386541043,1758371141960,407.79,0.00020305,2]
[386541044,1758371169897,5411.9503916,0.00019786,2]
[386541048,1758371187393,1000.0,0.00019786,2]
[386541049,1758371223671,196.11,0.0001936,2]
[386541050,1758371224092,392.22,0.00020282,2]
[386541051,1758371233502,-812.14104385,0.00020739,2]
[386541052,1758371233688,-831.91,0.00020777,10]
[386541053,1758371233916,-1663.82,0.00020777,10]
[386541054,1758371243528,-300.0,0.00020777,2]
[386541055,1758371243560,-1759.92,0.00020777,10]
[386541056,1758371243749,-4119.84,0.00020777,10]
[386541057,1758371243873,-1760.33,0.00020777,10]
[386541058,1758371243905,-1200.0,0.00020783,2]
[386541059,1758371243938,-300.0,0.00020784,2]
[386541060,1758371243969,-300.0,0.00020784,2]
[386541061,1758371244001,-300.0,0.00020784,2]
[386541062,1758371244032,-300.0,0.00020784,2]
[386541063,1758371244065,-288.0,0.00020784,2]
[386541064,1758371244098,-519.91534882,0.00020785,2]
[386541065,1758371244214,-63.51930236,0.00020785,2]
[386541066,1758371244245,-343.72902994,0.00020785,2]
[386541067,1758371244280,-500.0,0.00020785,2]
[386541068,1758371244315,-500.0,0.00020785,2]
[386541069,1758371244350,-500.0,0.00020785,2]
[386541070,1758371244386,-500.0,0.00020785,2]
[386541071,1758371244421,-500.0,0.00020785,2]
[386541072,1758371244456,-500.0,0.00020785,2]
[386541073,1758371244490,-500.0,0.00020785,2]
[386541074,1758371244524,-500.0,0.00020785,2]
[386541075,1758371244559,-270.81820691,0.00020785,2]
[386541076,1758371244596,-143.87692158,0.00020785,2]
[386541077,1758371244727,-356.12307842,0.00020785,2]
[386541078,1758371244764,-500.0,0.00020785,2]
[386541079,1758371244801,-500.0,0.00020785,2]
[386541080,1758371244837,-500.0,0.00020785,2]
[386541081,1758371244874,-480.0,0.00020785,2]
[386541082,1758371244906,-480.0,0.00020785,2]
[386541083,1758371244938,-480.0,0.00020785,2]
[386541084,1758371244971,-941.23,0.00020785,2]
[386541085,1758371245005,-239.14384316,0.00020785,2]
[386541086,1758371245099,-1047.01615684,0.00020785,2]
[386541087,1758371245131,-480.0,0.00020785,2]
[386541088,1758371245164,-483.85,0.00020785,2]
[386541089,1758371245197,-240.75097487,0.00020785,2]
[386541090,1758371245232,-270.20052324,0.00020785,2]
[386541091,1758371245266,-500.0,0.00020785,2]
[386541092,1758371245299,-916.05,0.00020785,2]
[386541093,1758371245333,-160.0,0.00020785,2]
[386541094,1758371245369,-160.0,0.00020786,2]
[386541095,1758371245400,-480.0,0.00020786,2]
[386541096,1758371245532,-21.95475925,0.00020786,2]
[386541097,1758371253533,262.0,0.00020462,2]
[386541098,1758371253660,-5250.67513199,0.00020777,10]
[386541099,1758371258086,262.0,0.00020489,2]
[386541101,1758371263558,-3737.91513199,0.00020777,10]
[386541102,1758371263584,-2524.17973602,0.00020777,10]
[386541103,1758371263801,-1039.95,0.00020785,2]
[386541104,1758371263832,-480.0,0.00020785,2]
[386541105,1758371263864,-480.0,0.00020785,2]
[386541106,1758371263897,-480.3651716,0.00020786,2]
[386541107,1758371263927,-436.87317553,0.00020786,2]
[386541108,1758371263958,-480.0,0.00020786,2]
[386541109,1758371263991,-480.0,0.00020786,2]
[386541110,1758371264021,-480.0,0.00020786,2]
[386541111,1758371264055,-480.0,0.00020786,2]
[386541112,1758371264193,-480.0,0.00020786,2]
[386541113,1758371264223,-480.0,0.00020786,2]
[386541114,1758371264253,-480.0,0.00020786,2]
[386541116,1758371264283,-480.0,0.00020786,2]
[386541117,1758371264314,-480.0,0.00020786,2]
[386541118,1758371264344,-483.94839084,0.00020786,2]
[386541119,1758371264376,-480.0,0.00020786,2]
[386541120,1758371264406,-484.37554641,0.00020786,2]
[386541121,1758371264438,-480.0,0.00020786,2]
[386541122,1758371264469,-480.0,0.00020786,2]
[386541123,1758371264698,-480.0,0.00020786,2]
[386541124,1758371264732,-976.19,0.00020786,2]
[386541125,1758371264763,-484.0323542,0.00020786,2]
[386541126,1758371264797,-480.0,0.00020786,2]
[386541127,1758371264829,-488.02973366,0.00020786,2]
[386541128,1758371264859,-480.0,0.00020786,2]
[386541129,1758371264890,-480.0,0.00020786,2]
[386541130,1758371264923,-480.0,0.00020786,2]
[386541131,1758371264954,-486.3222526,0.00020786,2]
[386541132,1758371265090,-4262.42,0.00020786,2]
[386541133,1758371265121,-480.0,0.00020786,2]
[386541134,1758371265155,-35.17,0.00020786,2]
[386541135,1758371265307,-444.83,0.00020786,2]
[386541136,1758371265339,-480.0,0.00020786,2]
[386541137,1758371265369,-480.0,0.00020786,2]
[386541138,1758371265399,-482.06282744,0.00020786,2]
[386541139,1758371265430,-480.0,0.00020786,2]
[386541140,1758371265460,-480.0,0.00020786,2]
[386541141,1758371265490,-480.0,0.00020786,2]
[386541142,1758371265519,-480.0,0.00020786,2]
[386541143,1758371265548,-480.0,0.00020786,2]
[386541144,1758371265580,-511.88434512,0.00020786,2]
[386541145,1758371266188,-58.67020421,0.00020786,2]
[386541146,1758371266203,-343.78545067,0.00020786,2]
[386541147,1758371266213,-136.21454933,0.00020786,2]
[386541148,1758371266228,-348.81034447,0.00020786,2]
[386541149,1758371266237,-131.18965553,0.00020786,2]
[386541150,1758371266252,-348.81034447,0.00020786,2]
[386541151,1758371266262,-480.0,0.00020786,2]
[386541152,1758371266271,-85.52965553,0.00020786,2]
[386541153,1758371271354,37183.9295704,0.00018,2]
[386541154,1758371283642,-480.0,0.00020785,2]
[386541155,1758371283675,-394.47034447,0.00020786,2]
[386541156,1758371283710,-491.11764647,0.00020786,2]
[386541157,1758371283742,-480.0,0.00020786,2]
[386541158,1758371283776,-480.0,0.00020786,2]
[386541159,1758371283808,-480.0,0.00020786,2]
[386541160,1758371283841,-514.2044781,0.00020786,2]
[386541161,1758371283874,-556.49275551,0.00020786,2]
[386541162,1758371283907,-751.0,0.00020786,2]
[386541163,1758371283938,-179.18309237,0.00020786,2]
[386541164,1758371284074,-480.0,0.00020786,2]
[386541165,1758371284108,-480.0,0.00020786,2]
[386541166,1758371284140,-480.0,0.00020786,2]
[386541167,1758371284172,-480.0,0.00020786,2]
[386541168,1758371284204,-480.0,0.00020786,2]
[386541169,1758371284236,-480.0,0.00020786,2]
[386541170,1758371284270,-481.15291093,0.00020786,2]
[386541171,1758371284303,-480.0,0.00020786,2]
[386541172,1758371284543,-480.0,0.00020786,2]
[386541173,1758371284576,-486.15753045,0.00020786,2]
[386541174,1758371284698,-480.0,0.00020786,2]
[386541175,1758371284837,-480.0,0.00020786,2]
[386541176,1758371284872,-2251.01,0.00020786,2]
[386541177,1758371284904,-480.0,0.00020786,2]
[386541178,1758371284936,-480.0,0.00020786,2]
[386541179,1758371284978,-497.0,0.00020786,2]
[386541180,1758371285082,-663.99,0.00020786,2]
[386541181,1758371285113,-480.0,0.00020786,2]
[386541182,1758371285144,-170.91,0.00020786,2]
[386541183,1758371285518,-145.86292478,0.00020786,2]
[386541184,1758371285534,-663.99,0.00020786,2]
[386541185,1758371285551,-480.0,0.00020786,2]
[386541186,1758371285566,-170.91,0.00020786,2]
[386541187,1758371285582,-7370.21,0.00020786,2]
[386541188,1758371303595,-2145.91,0.00020785,2]
[386541189,1758371303628,-480.0,0.00020785,2]
[386541190,1758371303662,-1439.94707522,0.00020786,2]
[386541191,1758371303694,-480.0,0.00020786,2]
[386541192,1758371303726,-428.29584956,0.00020786,2]
[386541193,1758371303823,-51.70415044,0.00020786,2]
[386541194,1758371306346,188.62,0.00019363,2]
[386541195,1758371306815,377.24,0.00020286,2]
[386541196,1758371308422,923.51608253,0.000199,2]
[386541197,1758371309980,158.76354839,0.0002,2]
[386541199,1758371314722,302.0,0.00027397,120]
[386541200,1758371316458,251.33757466,0.0002,7]
[386541201,1758371319844,9748.67242534,0.00018,2]
[386541202,1758371319869,251.33757466,0.00018,2]
[386541203,1758371321447,150.9999991,0.0002941,120]
[386541204,1758371322618,9748.67242534,0.0002,2]
[386541205,1758371322643,10000.01,0.0002,2]
[386541206,1758371322668,3251.31757466,0.0002,2]
[386541207,1758371327329,50118.3853327,0.0002941,120]
[386541208,1758371327360,797.26122392,0.00020687,2]
[386541209,1758371335759,-438.71689569,0.00020785,2]
[386541210,1758371335795,-480.0,0.00020785,2]
[386541211,1758371335831,-480.0,0.00020785,2]
[386541212,1758371335869,-480.0,0.00020786,2]
[386541213,1758371335903,-480.0,0.00020786,2]
[386541214,1758371335937,-480.0,0.00020786,2]
[386541215,1758371335970,-480.0,0.00020786,2]
[386541216,1758371336005,-480.0,0.00020786,2]
[386541217,1758371336041,-480.0,0.00020786,2]
[386541218,1758371336080,-480.0,0.00020786,2]
[386541219,1758371343647,-480.0,0.00020785,2]
[386541220,1758371343682,-300.0,0.00020785,2]
[386541221,1758371343716,-480.0,0.00020785,2]
[386541222,1758371343752,-1413.84,0.00020786,2]
[386541223,1758371343784,-500.0,0.00020786,2]
[386541224,1758371343817,-480.0,0.00020786,2]
[386541225,1758371343850,-480.0,0.00020786,2]
[386541226,1758371343882,-486.46179726,0.00020786,2]
[386541227,1758371343915,-276.65382682,0.00020786,2]
[386541228,1758371344068,-206.09875184,0.00020786,2]
[386541229,1758371344102,-480.0,0.00020786,2]
[386541230,1758371344133,-480.0,0.00020786,2]
[386541231,1758371344167,-487.30719124,0.00020786,2]
[386541232,1758371344203,-1845.91,0.00020786,2]
[386541233,1758371344236,-480.0,0.00020786,2]
[386541234,1758371344269,-480.0,0.00020786,2]
[386541235,1758371344301,-487.61992681,0.00020786,2]
[386541236,1758371353732,-958.81,0.00020785,2]
[386541237,1758371353764,-488.50494332,0.00020786,2]
[386541238,1758371353797,-480.0,0.00020786,2]
[386541239,1758371353829,-480.0,0.00020786,2]
[386541240,1758371353860,-411.31788032,0.00020786,2]
[386541241,1758371353895,-480.0,0.00020786,2]
[386541242,1758371353935,-480.0,0.00020786,2]
[386541243,1758371353966,-480.0,0.00020786,2]
[386541244,1758371353997,-480.0,0.00020786,2]
[386541245,1758371354032,-22.74435272,0.00020786,2]
[386541246,1758371354185,-477.25564728,0.00020786,2]
[386541247,1758371354214,-480.0,0.00020786,2]
[386541248,1758371354246,-483.45214899,0.00020786,2]
[386541249,1758371354276,-480.0,0.00020786,2]
[386541250,1758371354308,-480.0,0.00020786,2]
[386541251,1758371354340,-480.0,0.00020786,2]
[386541252,1758371354693,-4267.15,0.00020786,2]
[386541253,1758371354725,-480.0,0.00020786,2]
[386541254,1758371354756,-11.62140564,0.00020786,2]
[386541255,1758371354858,-482.46718872,0.00020786,2]
[386541256,1758371354889,-480.0,0.00020786,2]
[386541257,1758371354921,-481.5012403,0.00020786,2]
[386541258,1758371354954,-480.0,0.00020786,2]
[386541259,1758371354988,-886.97,0.00020786,2]
[386541260,1758371355020,-480.0,0.00020786,2]
[386541261,1758371355053,-898.57,0.00020786,2]
[386541262,1758371355084,-480.0,0.00020786,2]
[386541263,1758371355116,-180.99314196,0.00020786,2]
[386541264,1758371355285,-299.00685804,0.00020786,2]
[386541265,1758371355318,-480.0,0.00020786,2]
[386541266,1758371355351,-480.0,0.00020786,2]
[386541267,1758371355382,-480.0,0.00020786,2]
[386541268,1758371355420,-490.10439157,0.00020786,2]
[386541269,1758371355452,-480.0,0.00020786,2]
[386541270,1758371355484,-480.8220869,0.00020786,2]
[386541271,1758371355526,-488.95365151,0.00020787,2]
[386541272,1758371355570,-480.0,0.00020787,2]
[386541273,1758371355650,-2239.1064953,0.00020787,2]